bitfinex/quotes_SOLUSD_20230120
["timestamp","ask_amount","ask_price","bid_price","bid_amount"]
[1674205436063,17.96,21.1,21.088,35.57]
[1674205436253,17.96,21.1,21.088,45.57]
[1674205440266,0.96,21.1,21.088,45.57]
[1674205440476,0.96,21.1,21.089,10.0]
[1674205442148,0.96,21.1,21.088,45.57]
[1674205442490,0.96,21.1,21.088,35.57]
[1674205442802,0.96,21.1,21.087,113.7821]
[1674205442997,0.96,21.1,21.088,35.57]
[1674205446051,0.96,21.1,21.088,45.57]
[1674205447289,0.96,21.1,21.087,149.3521]
[1674205447290,0.96,21.099,21.087,149.3521]
[1674205447506,10.96,21.098,21.084,35.58]
[1674205447715,37.96,21.097,21.084,35.58]
[1674205447933,10.96,21.096,21.084,35.58]
[1674205448139,17.96,21.095,21.084,35.58]
[1674205448341,0.96,21.096,21.084,35.58]
[1674205448567,17.96,21.096,21.084,35.58]
[1674205448767,0.96,21.096,21.085,10.0]
[1674205448971,20.96,21.097,21.085,10.0]
[1674205449182,17.0,21.096,21.085,10.0]
[1674205450767,20.0,21.097,21.085,10.0]
[1674205450973,20.0,21.099,21.085,10.0]
[1674205451388,20.0,21.1,21.085,10.0]
[1674205451599,0.96,21.099,21.085,10.0]
[1674205455014,10.96,21.099,21.085,10.0]
[1674205455210,20.0,21.098,21.085,10.0]
[1674205455423,23.75576951,21.103,21.086,55.57]
[1674205455622,17.96,21.102,21.087,18.92]
[1674205455832,0.96,21.102,21.088,35.57]
[1674205456049,17.0,21.104,21.088,35.57]
[1674205456050,0.96,21.103,21.089,10.0]
[1674205456266,0.96,21.103,21.09,35.57]
[1674205456479,0.96,21.103,21.091,10.0]
[1674205456799,0.96,21.103,21.09,35.57]
[1674205457111,0.96,21.103,21.091,10.0]
[1674205458588,0.96,21.103,21.09,35.57]
[1674205458800,0.96,21.102,21.09,35.57]
[1674205458983,17.96,21.102,21.09,35.57]
[1674205459200,0.96,21.101,21.09,35.57]
[1674205460367,17.96,21.102,21.09,35.57]
[1674205460568,10.0,21.103,21.09,35.57]
[1674205460785,10.0,21.105,21.091,10.0]
[1674205460995,18.92,21.104,21.091,10.0]
[1674205466362,59.29576951,21.106,21.093,10.0]
[1674205466575,148.7279,21.109,21.093,45.56]
[1674205466758,38.92,21.108,21.093,45.56]
[1674205469418,10.0,21.107,21.093,45.56]
[1674205469732,38.92,21.108,21.093,45.56]
[1674205470057,20.0,21.108,21.093,35.56]
[1674205470374,10.0,21.107,21.093,35.56]
[1674205470555,10.0,21.105,21.091,10.0]
[1674205471186,17.96,21.104,21.091,10.0]
[1674205471630,10.0,21.105,21.091,10.0]
[1674205471836,10.0,21.105,21.092,35.56]
[1674205472041,45.54,21.107,21.093,10.0]
[1674205472252,17.0,21.106,21.093,10.0]
[1674205474566,45.54,21.107,21.091,45.56]
[1674205474753,17.96,21.106,21.091,45.56]
[1674205475071,10.96,21.105,21.091,45.56]
[1674205475280,17.96,21.104,21.091,45.56]
[1674205475491,0.96,21.103,21.09,15.34]
[1674205475726,0.96,21.102,21.09,15.34]
[1674205475913,17.96,21.102,21.09,15.34]
[1674205478663,10.0,21.105,21.091,10.96]
[1674205478855,10.0,21.105,21.092,35.56]
[1674205479067,10.0,21.106,21.091,46.52]
[1674205479698,45.54,21.107,21.091,46.52]
[1674205480018,45.54,21.107,21.092,0.96]
[1674205480538,17.0,21.106,21.092,0.96]
[1674205482341,35.54,21.105,21.092,0.96]
[1674205482658,52.54,21.106,21.092,0.96]
[1674205482848,52.54,21.106,21.091,45.56]
[1674205483080,10.0,21.105,21.091,45.56]
[1674205483727,17.96,21.104,21.091,45.56]
[1674205484756,17.96,21.104,21.09,50.91]
[1674205485824,10.0,21.103,21.09,50.91]
[1674205488663,17.96,21.104,21.091,10.0]
[1674205492113,0.96,21.104,21.091,10.0]
[1674205492528,10.96,21.104,21.091,10.0]
[1674205492738,17.0,21.103,21.091,10.0]
[1674205493518,29.923395,21.104,21.091,10.0]
[1674205495507,17.0,21.103,21.091,10.0]
[1674205495709,0.96,21.102,21.091,10.0]
[1674205499082,0.96,21.102,21.09,50.91]
[1674205499491,10.96,21.102,21.09,50.91]
[1674205499691,17.96,21.101,21.09,15.34]
[1674205499902,0.96,21.1,21.09,15.34]
[1674205501366,36.51,21.099,21.084,35.58]
[1674205501586,17.0,21.098,21.081,54.543396]
[1674205501903,55.55,21.097,21.081,18.963396]
[1674205502125,10.0,21.095,21.081,18.963396]
[1674205502313,53.52,21.094,21.081,18.963396]
[1674205502529,10.0,21.093,21.081,18.963396]
[1674205502744,54.48,21.092,21.081,18.963396]
[1674205503182,54.48,21.092,21.078,10.0]
[1674205504422,10.0,21.091,21.077,153.8337]
[1674205504631,18.92,21.09,21.077,118.2437]
[1674205505175,18.92,21.09,21.078,20.0]
[1674205506100,17.0,21.089,21.079,10.0]
[1674205506311,0.96,21.088,21.079,10.0]
[1674205506657,1.92,21.09,21.079,10.0]
[1674205506977,35.56,21.092,21.079,10.0]
[1674205507160,35.56,21.094,21.08,15.21]
[1674205507373,45.56,21.096,21.081,10.0]
[1674205507583,35.56,21.096,21.081,10.0]
[1674205507793,35.55,21.101,21.082,18.92]
[1674205508121,18.963395,21.104,21.09,15.32]
[1674205508431,18.963395,21.104,21.091,35.56]
[1674205508642,18.963395,21.104,21.09,15.32]
[1674205509359,18.92,21.103,21.09,15.32]
[1674205509998,18.92,21.103,21.09,50.89]
[1674205510853,10.0,21.101,21.087,117.4497]
[1674205511054,18.92,21.1,21.088,20.0]
[1674205512091,18.92,21.1,21.088,30.0]
[1674205513992,18.92,21.1,21.088,20.0]
[1674205514312,18.92,21.1,21.088,30.0]
[1674205514943,18.92,21.1,21.088,20.0]
[1674205515892,35.54,21.102,21.088,20.0]
[1674205516103,35.54,21.103,21.089,10.0]
[1674205517263,0.96,21.102,21.089,10.0]
[1674205517460,17.96,21.102,21.089,10.0]
[1674205519133,0.96,21.102,21.089,10.0]
[1674205523263,0.96,21.101,21.089,10.0]
[1674205523477,17.96,21.102,21.089,10.0]
[1674205523672,0.96,21.101,21.089,10.0]
[1674205529048,17.96,21.102,21.089,10.0]
[1674205529978,17.96,21.102,21.088,10.0]
[1674205530824,0.96,21.101,21.089,35.57]
[1674205531041,10.96,21.101,21.088,35.57]
[1674205531346,0.96,21.1,21.088,35.57]
[1674205531558,0.96,21.099,21.087,117.4497]
[1674205531776,0.96,21.098,21.087,117.4497]
[1674205533973,45.54,21.103,21.087,117.4497]
[1674205534183,10.0,21.103,21.088,45.57]
[1674205535235,18.92,21.102,21.088,45.57]
[1674205536602,54.503395,21.104,21.09,15.29]
[1674205536816,18.963395,21.104,21.09,15.29]
[1674205537035,0.96,21.103,21.091,35.56]
[1674205537250,10.96,21.103,21.091,35.56]
[1674205537763,10.96,21.103,21.09,15.29]
[1674205541767,18.963395,21.104,21.09,15.29]
[1674205541984,18.963395,21.104,21.091,64.48]
[1674205546394,18.963395,21.104,21.091,54.48]
[1674205549125,18.963395,21.104,21.091,35.56]
[1674205549334,101.97153902,21.103,21.088,35.57]
[1674205549540,101.97153902,21.103,21.087,153.0197]
[1674205549754,18.92,21.103,21.087,153.0197]
[1674205550072,10.0,21.102,21.087,153.0197]
[1674205550261,18.92,21.101,21.087,153.0197]
[1674205550702,10.0,21.1,21.087,153.0197]
[1674205552258,18.92,21.101,21.087,153.0197]
[1674205552259,18.92,21.101,21.088,10.0]
[1674205552475,18.92,21.101,21.089,35.57]
[1674205556486,18.963395,21.104,21.089,35.57]
[1674205556797,18.963395,21.104,21.091,10.0]
[1674205557008,18.963395,21.104,21.092,54.48]
[1674205557209,18.963395,21.104,21.093,10.0]
[1674205557426,18.963395,21.104,21.094,35.56]
[1674205561734,18.963395,21.104,21.092,35.56]
[1674205561944,0.96,21.103,21.091,45.56]
[1674205562569,0.96,21.103,21.091,35.56]
[1674205566372,10.96,21.102,21.091,35.56]
[1674205566565,17.96,21.101,21.091,35.56]
[1674205567111,0.96,21.101,21.091,35.56]
[1674205568371,17.96,21.102,21.091,35.56]
[1674205568683,17.0,21.103,21.091,35.56]
[1674205568896,0.96,21.102,21.091,35.56]
[1674205569536,0.96,21.102,21.092,10.0]
[1674205570030,18.963395,21.104,21.092,10.0]
[1674205570240,0.96,21.103,21.092,10.0]
[1674205572373,18.963395,21.104,21.092,10.0]
[1674205572554,18.963395,21.104,21.093,35.56]
[1674205574780,18.963395,21.104,21.092,35.56]
[1674205576162,0.96,21.103,21.092,35.56]
[1674205577937,0.96,21.103,21.091,35.56]
[1674205578145,18.963395,21.104,21.091,35.56]
[1674205581940,10.96,21.103,21.091,35.56]
[1674205583186,10.0,21.101,21.091,35.56]
[1674205583409,18.92,21.1,21.088,35.57]
[1674205583620,10.0,21.099,21.088,35.57]
[1674205583831,18.92,21.098,21.086,35.57]
[1674205585606,65.55,21.097,21.082,35.58]
[1674205585815,10.0,21.095,21.082,35.58]
[1674205586133,18.92,21.094,21.082,35.58]
[1674205587943,18.92,21.094,21.083,10.0]
[1674205588679,1.92,21.094,21.083,10.0]
[1674205592129,1.92,21.094,21.082,35.58]
[1674205592457,1.92,21.094,21.08,15.21]
[1674205592458,18.92,21.094,21.08,35.58]
[1674205592768,10.0,21.093,21.08,35.58]
[1674205592979,18.92,21.092,21.08,35.58]
[1674205593181,18.92,21.092,21.081,10.0]
[1674205593391,1.92,21.092,21.081,10.0]
[1674205594757,17.0,21.094,21.081,10.0]
[1674205595083,0.96,21.093,21.081,10.0]
[1674205595392,17.0,21.095,21.081,10.0]
[1674205595606,10.96,21.094,21.081,10.0]
[1674205596454,17.96,21.093,21.081,10.0]
[1674205596642,10.96,21.094,21.081,10.0]
[1674205597298,0.96,21.094,21.081,10.0]
[1674205598872,10.96,21.094,21.081,10.0]
[1674205599715,0.96,21.094,21.081,10.0]
[1674205600123,0.96,21.095,21.081,10.0]
[1674205600335,0.96,21.095,21.082,35.58]
[1674205600556,10.96,21.095,21.082,35.58]
[1674205601899,10.0,21.093,21.078,35.59]
[1674205602104,10.0,21.091,21.077,160.1214]
[1674205602319,0.96,21.09,21.077,160.1214]
[1674205602551,0.96,21.089,21.077,160.1214]
[1674205604650,17.96,21.09,21.077,160.1214]
[1674205604873,35.56,21.094,21.077,160.1214]
[1674205605172,18.92,21.093,21.077,160.1214]
[1674205606222,10.0,21.096,21.081,10.0]
[1674205606446,10.0,21.096,21.081,45.58]
[1674205607815,10.0,21.094,21.081,45.58]
[1674205608023,0.96,21.093,21.081,45.58]
[1674205608243,0.96,21.093,21.081,35.58]
[1674205608422,18.92,21.093,21.081,35.58]
[1674205608632,17.96,21.093,21.081,35.58]
[1674205608871,0.96,21.092,21.081,35.58]
[1674205612330,0.96,21.091,21.081,35.58]
[1674205613162,0.96,21.091,21.08,50.92]
[1674205614419,0.96,21.091,21.08,35.58]
[1674205614638,0.96,21.09,21.078,35.59]
[1674205614857,0.96,21.089,21.077,150.1214]
[1674205615176,0.96,21.088,21.077,150.1214]
[1674205615386,0.96,21.087,21.077,150.1214]
[1674205621371,0.96,21.087,21.077,35.59]
[1674205621581,0.96,21.086,21.071,144.7184]
[1674205621798,0.96,21.085,21.071,144.7184]
[1674205621996,0.96,21.084,21.071,109.1184]
[1674205622324,0.96,21.083,21.071,109.1184]
[1674205622636,0.96,21.082,21.071,109.1184]
[1674205622843,0.96,21.081,21.071,109.1184]
[1674205623063,0.96,21.08,21.07,35.6]
[1674205623246,0.96,21.079,21.067,35.6]
[1674205623585,0.96,21.078,21.068,10.0]
[1674205623787,0.96,21.077,21.069,35.6]
[1674205624305,17.0,21.081,21.069,35.6]
[1674205624516,454.82,21.103,21.069,35.6]
[1674205624723,18.92,21.084,21.07,10.0]
[1674205624934,1.92,21.084,21.071,35.6]
[1674205625144,1.92,21.084,21.072,10.0]
[1674205628215,1.92,21.084,21.071,35.6]
[1674205628829,11.92,21.084,21.071,35.6]
[1674205629044,17.0,21.083,21.071,35.6]
[1674205629378,1.92,21.082,21.071,35.6]
[1674205629786,1.92,21.082,21.069,35.6]
[1674205630409,10.0,21.081,21.069,35.6]
[1674205630626,18.92,21.08,21.067,35.6]
[1674205631777,10.0,21.079,21.067,35.6]
[1674205631990,18.92,21.078,21.066,35.61]
[1674205632193,18.92,21.078,21.067,20.0]
[1674205632408,18.92,21.078,21.068,35.6]
[1674205634602,18.92,21.078,21.067,20.0]
[1674205639437,9.93745481,21.077,21.066,35.61]
[1674205639649,18.92,21.076,21.065,115.9581]
[1674205640394,10.0,21.075,21.065,115.9581]
[1674205640599,18.92,21.074,21.065,115.9581]
[1674205645749,18.92,21.074,21.061,152.8441]
[1674205645951,10.0,21.073,21.061,117.2341]
[1674205646283,18.92,21.072,21.061,117.2341]
[1674205646691,10.0,21.071,21.061,117.2341]
[1674205646905,18.92,21.07,21.061,117.2341]
[1674205648680,10.0,21.073,21.061,117.2341]
[1674205649123,0.96,21.072,21.061,152.8441]
[1674205650795,0.96,21.072,21.061,35.61]
[1674205651014,0.96,21.071,21.058,35.62]
[1674205651201,0.96,21.07,21.055,35.62]
[1674205651411,17.96,21.07,21.055,35.62]
[1674205651642,20.96,21.069,21.055,35.62]
[1674205651833,27.96,21.068,21.055,35.62]
[1674205652044,10.0,21.066,21.055,35.62]
[1674205652271,1.92,21.065,21.055,35.62]
[1674205652588,18.92,21.065,21.054,108.5671]
[1674205653413,10.0,21.063,21.05,25.34]
[1674205653622,18.92,21.062,21.05,25.34]
[1674205655429,0.96,21.062,21.05,25.34]
[1674205655647,35.6,21.067,21.052,10.0]
[1674205655958,10.0,21.068,21.052,10.0]
[1674205655959,0.96,21.066,21.052,10.0]
[1674205656273,20.0,21.067,21.053,36.59]
[1674205656479,20.0,21.067,21.054,116.5555]
[1674205656797,20.0,21.072,21.056,10.0]
[1674205656988,20.0,21.072,21.057,35.62]
[1674205658161,18.92,21.071,21.057,35.62]
[1674205658485,30.0,21.07,21.057,35.62]
[1674205658671,0.96,21.069,21.057,35.62]
[1674205658883,20.0,21.07,21.058,10.0]
[1674205659105,20.0,21.072,21.058,10.0]
[1674205659317,20.0,21.072,21.059,35.62]
[1674205659841,10.0,21.071,21.059,35.62]
[1674205660055,20.0,21.07,21.059,35.62]
[1674205660252,1.92,21.069,21.057,35.62]
[1674205660466,1.92,21.069,21.056,45.62]
[1674205661530,11.92,21.069,21.056,45.62]
[1674205661745,37.0,21.068,21.056,10.0]
[1674205661929,1.92,21.067,21.056,10.0]
[1674205662594,1.92,21.067,21.056,9.93598323]
[1674205663726,1.92,21.067,21.055,45.62]
[1674205663940,1.92,21.067,21.055,35.62]
[1674205664266,11.92,21.067,21.054,116.5555]
[1674205664455,17.0,21.066,21.054,116.5555]
[1674205664664,1.92,21.065,21.054,116.5555]
[1674205664891,10.0,21.064,21.054,116.5555]
[1674205665102,18.92,21.063,21.054,116.5555]
[1674205665506,1.92,21.063,21.054,116.5555]
[1674205668446,0.96,21.063,21.054,116.5555]
[1674205668677,1.92,21.064,21.054,116.5555]
[1674205669825,18.92,21.064,21.054,116.5555]
[1674205670762,18.92,21.064,21.055,10.0]
[1674205670967,1.92,21.064,21.055,10.0]
[1674205671293,1.92,21.064,21.054,116.5555]
[1674205671825,18.92,21.064,21.054,116.5555]
[1674205673081,18.92,21.064,21.051,45.63]
[1674205673298,18.92,21.064,21.051,10.0]
[1674205674456,54.53,21.064,21.051,45.63]
[1674205675183,18.92,21.064,21.051,10.0]
[1674205675843,54.53,21.064,21.051,10.0]
[1674205676025,10.0,21.063,21.049,45.63]
[1674205676235,18.92,21.062,21.048,111.0784]
[1674205676460,10.0,21.061,21.048,111.0784]
[1674205676680,18.92,21.06,21.048,111.0784]
[1674205677712,1.92,21.06,21.049,10.0]
[1674205679311,1.92,21.06,21.048,111.0784]
[1674205679829,1.92,21.06,21.049,10.0]
[1674205680565,1.92,21.06,21.048,111.0784]
[1674205680782,10.0,21.059,21.048,111.0784]
[1674205681093,18.92,21.058,21.048,111.0784]
[1674205681493,18.92,21.058,21.046,35.64]
[1674205681699,20.0,21.057,21.044,35.64]
[1674205682040,10.0,21.055,21.044,35.64]
[1674205682247,17.96,21.054,21.044,35.64]
[1674205683404,10.0,21.055,21.044,35.64]
[1674205683613,18.92,21.054,21.044,35.64]
[1674205683830,18.92,21.054,21.043,113.5014]
[1674205685391,18.92,21.054,21.043,123.5014]
[1674205686030,17.96,21.054,21.043,123.5014]
[1674205686238,0.96,21.054,21.043,123.5014]
[1674205686435,0.96,21.054,21.044,10.0]
[1674205687386,0.96,21.055,21.044,10.0]
[1674205688114,0.96,21.054,21.043,123.5014]
[1674205688543,17.96,21.054,21.043,123.5014]
[1674205688758,0.96,21.053,21.043,113.5014]
[1674205691078,20.0,21.057,21.043,113.5014]
[1674205691288,20.0,21.057,21.045,10.0]
[1674205691493,20.0,21.058,21.045,10.0]
[1674205692653,18.92,21.057,21.045,10.0]
[1674205693157,18.92,21.057,21.044,10.0]
[1674205693368,10.0,21.056,21.044,10.0]
[1674205693598,18.92,21.055,21.044,10.0]
[1674205694420,1.92,21.055,21.044,10.0]
[1674205701257,18.92,21.055,21.044,10.0]
[1674205704433,1.92,21.055,21.044,10.0]
[1674205705063,18.92,21.055,21.044,10.0]
[1674205705797,18.92,21.055,21.043,123.5014]
[1674205706643,17.0,21.054,21.043,123.5014]
[1674205706825,1.92,21.053,21.044,10.0]
[1674205707162,0.96,21.052,21.044,10.0]
[1674205707373,18.92,21.055,21.043,123.5014]
[1674205708636,18.92,21.055,21.043,113.5014]
[1674205708829,10.0,21.054,21.043,113.5014]
[1674205709035,18.92,21.053,21.043,113.5014]
[1674205711895,1.92,21.053,21.043,113.5014]
[1674205716525,17.0,21.055,21.043,113.5014]
[1674205716733,20.0,21.058,21.044,35.64]
[1674205716954,35.61,21.062,21.044,35.64]
[1674205716955,20.0,21.061,21.044,35.64]
[1674205717270,20.0,21.061,21.045,27.0]
[1674205717452,20.0,21.061,21.047,10.0]
[1674205718293,18.92,21.06,21.047,10.0]
[1674205718503,20.0,21.059,21.047,10.0]
[1674205718723,0.96,21.058,21.047,10.0]
[1674205721565,20.0,21.059,21.047,10.0]
[1674205721774,0.96,21.06,21.047,10.0]
[1674205721987,0.96,21.059,21.047,10.0]
[1674205722924,0.96,21.059,21.046,35.64]
[1674205723132,0.96,21.058,21.044,10.0]
[1674205723564,17.96,21.058,21.046,10.0]
[1674205723889,10.0,21.056,21.044,45.64]
[1674205724101,18.92,21.055,21.044,10.0]
[1674205724511,1.92,21.055,21.044,10.0]
[1674205725768,1.92,21.055,21.044,45.64]
[1674205726091,20.0,21.057,21.044,45.64]
[1674205726296,117.5065,21.064,21.045,37.9877471]
[1674205726520,117.5065,21.064,21.046,54.56]
[1674205726734,117.5065,21.064,21.048,10.0]
[1674205726943,35.6,21.068,21.049,35.63]
[1674205727149,35.6,21.068,21.05,17.96]
[1674205727359,20.0,21.067,21.051,35.63]
[1674205727572,20.0,21.067,21.053,10.0]
[1674205728224,20.0,21.067,21.054,112.3226]
[1674205729359,0.96,21.066,21.054,112.3226]
[1674205730290,10.96,21.065,21.054,112.3226]
[1674205731559,17.96,21.064,21.054,112.3226]
[1674205731769,0.96,21.063,21.054,112.3226]
[1674205738209,0.96,21.062,21.054,112.3226]
[1674205738411,0.96,21.061,21.054,112.3226]
[1674205738720,0.96,21.06,21.054,112.3226]
[1674205738932,0.96,21.059,21.054,112.3226]
[1674205739539,0.96,21.059,21.05,35.63]
[1674205740596,0.96,21.058,21.045,35.64]
[1674205740804,0.96,21.057,21.045,35.64]
[1674205741034,0.96,21.056,21.046,10.0]
[1674205741221,0.96,21.055,21.046,10.0]
[1674205743031,0.96,21.055,21.044,45.64]
[1674205743760,0.96,21.055,21.044,35.64]
[1674205744086,0.96,21.054,21.044,35.64]
[1674205744293,0.96,21.054,21.043,113.5014]
[1674205744294,0.96,21.053,21.043,113.5014]
[1674205744502,0.96,21.052,21.043,113.5014]
[1674205744696,0.96,21.051,21.043,113.5014]
[1674205746519,0.96,21.051,21.042,35.65]
[1674205746703,0.96,21.05,21.037,146.3851]
[1674205747250,0.96,21.049,21.037,146.3851]
[1674205747432,0.96,21.048,21.037,146.3851]
[1674205747767,0.96,21.047,21.038,10.0]
[1674205748812,0.96,21.047,21.038,45.65]
[1674205749006,0.96,21.047,21.038,10.0]
[1674205749953,35.62,21.056,21.039,35.65]
[1674205750292,35.62,21.056,21.04,10.0]
[1674205750486,30.0,21.058,21.04,10.0]
[1674205750487,35.63,21.054,21.04,10.0]
[1674205751024,17.96,21.053,21.04,10.0]
[1674205751234,0.96,21.052,21.04,10.0]
[1674205752391,10.96,21.052,21.04,10.0]
[1674205752605,17.96,21.051,21.04,10.0]
[1674205752790,0.96,21.05,21.04,10.0]
[1674205753642,20.96,21.05,21.038,45.65]
[1674205754179,20.96,21.05,21.038,35.65]
[1674205754488,10.0,21.048,21.035,10.0]
[1674205754689,38.92,21.047,21.035,10.0]
[1674205755761,38.92,21.047,21.032,148.5258]
[1674205759741,35.64,21.046,21.032,148.5258]
[1674205759932,20.96,21.047,21.034,35.66]
[1674205760142,0.96,21.047,21.034,35.66]
[1674205760363,53.59,21.049,21.035,10.0]
[1674205760576,20.0,21.048,21.035,10.0]
[1674205760791,0.96,21.047,21.035,10.0]
[1674205761515,1.92,21.047,21.035,10.0]
[1674205761848,20.0,21.048,21.035,10.0]
[1674205762063,20.0,21.05,21.037,10.0]
[1674205762259,20.0,21.054,21.037,10.0]
[1674205762465,35.63,21.053,21.037,10.0]
[1674205762667,20.0,21.052,21.037,10.0]
[1674205762886,35.63,21.051,21.037,10.0]
[1674205763108,20.0,21.05,21.037,10.0]
[1674205763304,20.96,21.05,21.037,10.0]
[1674205763518,0.96,21.049,21.037,10.0]
[1674205763738,20.96,21.049,21.037,10.0]
[1674205763953,0.96,21.048,21.037,10.0]
[1674205764267,0.96,21.049,21.037,10.0]
[1674205768788,0.96,21.049,21.035,10.0]
[1674205769100,17.96,21.049,21.035,10.0]
[1674205769317,36.6,21.048,21.035,10.0]
[1674205769630,37.96,21.047,21.035,10.0]
[1674205769945,0.96,21.046,21.035,10.0]
[1674205770134,0.96,21.045,21.035,10.0]
[1674205770344,0.96,21.044,21.035,10.0]
[1674205771204,0.96,21.043,21.035,10.0]
[1674205771729,0.96,21.042,21.035,10.0]
[1674205772381,20.0,21.047,21.035,10.0]
[1674205772692,35.63,21.053,21.036,55.66]
[1674205772903,35.62,21.057,21.036,55.66]
[1674205773086,59.37576951,21.057,21.036,55.66]
[1674205773294,59.37576951,21.057,21.037,10.0]
[1674205773295,33.75576951,21.056,21.037,10.0]
[1674205773525,53.58,21.055,21.038,35.65]
[1674205773717,77.33576951,21.055,21.039,10.0]
[1674205774462,77.33576951,21.055,21.038,35.65]
[1674205774678,15.34,21.05,21.035,10.0]
[1674205774901,74.55,21.049,21.035,10.0]
[1674205785725,74.55,21.049,21.034,10.0]
[1674205790028,74.55,21.049,21.033,10.0]
[1674205790244,98.30576951,21.049,21.032,122.8658]
[1674205790457,10.0,21.048,21.032,122.8658]
[1674205790667,74.56,21.047,21.032,112.8658]
[1674205791093,10.0,21.046,21.032,112.8658]
[1674205791415,54.56,21.045,21.033,10.0]
[1674205791602,54.56,21.045,21.032,112.8658]
[1674205792549,54.56,21.045,21.028,10.0]
[1674205792766,10.0,21.044,21.023,10.0]
[1674205792976,54.56,21.043,21.024,55.68]
[1674205793181,10.0,21.042,21.025,10.0]
[1674205793393,54.57,21.041,21.025,10.0]
[1674205793709,20.0,21.04,21.025,10.0]
[1674205793923,54.57,21.039,21.025,10.0]
[1674205794133,20.0,21.038,21.025,10.0]
[1674205794343,54.57,21.037,21.025,10.0]
[1674205795304,54.57,21.037,21.023,10.0]
[1674205797400,35.65,21.037,21.023,10.0]
[1674205798966,18.92,21.036,21.023,10.0]
[1674205799176,35.66,21.035,21.023,10.0]
[1674205799391,35.66,21.035,21.022,123.7475]
[1674205799392,18.92,21.034,21.022,113.7475]
[1674205799609,18.92,21.034,21.023,10.0]
[1674205799818,35.66,21.033,21.023,10.0]
[1674205800013,1.92,21.032,21.023,10.0]
[1674205801483,18.92,21.032,21.023,10.0]
[1674205802257,1.92,21.032,21.023,10.0]